[Event "Masterklassen-Elit 2025"]
[Site "Uppsala, Sweden"]
[Date "2025.06.29"]
[Round "2.4"]
[White "Olsson, William"]
[Black "Ljung, Harald"]
[Result "1-0"]
[TimeControl "90 min for 40 move + 30 min with an increment of 30 sec starting move 1"]
[WhiteTitle "IM"]
[WhiteFideId "1741721"]
[BlackFideId "1738178"]
[WhiteElo "2365"]
[BlackElo "2194"]

1. c4 {[%clk 01:30:58]} {[%emt 00:00:02]} e6 {[%clk 01:30:44]} {[%emt
00:00:17]} 2. g3 {[%clk 01:31:21]} {[%emt 00:00:07]} Nf6 {[%clk 01:30:53]}
{[%emt 00:00:21]} 3. Bg2 {[%clk 01:31:45]} {[%emt 00:00:06]} d5 {[%clk
01:31:18]} {[%emt 00:00:05]} 4. Nf3 {[%clk 01:32:10]} {[%emt 00:00:05]} Be7
{[%clk 01:31:39]} {[%emt 00:00:09]} 5. O-O {[%clk 01:32:34]} {[%emt 00:00:05]}
O-O {[%clk 01:31:51]} {[%emt 00:00:18]} 6. d4 {[%clk 01:32:54]} {[%emt
00:00:10]} c6 {[%clk 01:30:46]} {[%emt 00:01:36]} 7. Qc2 {[%clk 01:33:19]}
{[%emt 00:00:05]} b6 {[%clk 01:29:11]} {[%emt 00:02:03]} 8. Nbd2 {[%clk
01:32:26]} {[%emt 00:01:24]} Bb7 {[%clk 01:25:10]} {[%emt 00:04:31]} 9. e4
{[%clk 01:32:07]} {[%emt 00:00:49]} Nxe4 {[%clk 01:18:20]} {[%emt 00:07:21]} 10.
Nxe4 {[%clk 01:31:56]} {[%emt 00:00:40]} dxe4 {[%clk 01:18:45]} {[%emt
00:00:05]} 11. Qxe4 {[%clk 01:32:22]} {[%emt 00:00:05]} Nd7 {[%clk 01:17:47]}
{[%emt 00:01:27]} 12. Rd1 {[%clk 01:30:30]} {[%emt 00:02:20]} Nf6 {[%clk
01:17:49]} {[%emt 00:00:31]} 13. Qe2 {[%clk 01:30:56]} {[%emt 00:00:04]} Qc8
{[%clk 01:12:01]} {[%emt 00:06:18]} 14. a3 {[%clk 01:27:44]} {[%emt 00:03:41]}
Re8 {[%clk 01:08:48]} {[%emt 00:03:43]} 15. b4 {[%clk 01:24:58]} {[%emt
00:03:16]} a5 {[%clk 01:02:31]} {[%emt 00:06:47]} 16. Bd2 {[%clk 01:23:28]}
{[%emt 00:01:58]} Nd7 {[%clk 00:54:43]} {[%emt 00:08:19]} 17. Bc3 {[%clk
01:09:40]} {[%emt 00:14:19]} Bf6 {[%clk 00:47:30]} {[%emt 00:07:44]} 18. Qb2
{[%clk 01:05:40]} {[%emt 00:04:26]} Ra7 {[%clk 00:45:32]} {[%emt 00:02:31]} 19.
Nd2 {[%clk 00:58:21]} {[%emt 00:07:47]} Qc7 {[%clk 00:32:30]} {[%emt 00:13:35]}
20. f4 {[%clk 00:52:20]} {[%emt 00:06:30]} h6 {[%clk 00:22:35]} {[%emt
00:10:25]} 21. Ne4 {[%clk 00:48:57]} {[%emt 00:03:53]} Be7 {[%clk 00:22:34]}
{[%emt 00:00:32]} 22. Nf2 {[%clk 00:49:20]} {[%emt 00:00:06]} Rea8 {[%clk
00:14:57]} {[%emt 00:08:07]} 23. Ng4 {[%clk 00:45:49]} {[%emt 00:04:01]} h5
{[%clk 00:13:54]} {[%emt 00:01:34]} 24. Ne3 {[%clk 00:43:34]} {[%emt 00:02:44]}
Nf6 {[%clk 00:13:03]} {[%emt 00:01:20]} 25. f5 {[%clk 00:42:19]} {[%emt
00:01:46]} axb4 {[%clk 00:12:17]} {[%emt 00:01:17]} 26. axb4 {[%clk 00:42:47]}
{[%emt 00:00:02]} Rxa1 {[%clk 00:12:18]} {[%emt 00:00:28]} 27. Rxa1 {[%clk
00:43:16]} {[%emt 00:00:01]} Rxa1+ {[%clk 00:12:21]} {[%emt 00:00:27]} 28. Qxa1
{[%clk 00:43:45]} {[%emt 00:00:01]} exf5 {[%clk 00:12:31]} {[%emt 00:00:21]} 29.
Nxf5 {[%clk 00:43:54]} {[%emt 00:00:21]} Bc8 {[%clk 00:12:37]} {[%emt
00:00:23]} 30. Nxe7+ {[%clk 00:41:13]} {[%emt 00:03:12]} Qxe7 {[%clk 00:13:02]}
{[%emt 00:00:04]} 31. Qe1 {[%clk 00:41:34]} {[%emt 00:00:09]} Qd7 {[%clk
00:10:25]} {[%emt 00:03:08]} 32. d5 {[%clk 00:35:53]} {[%emt 00:06:10]} cxd5
{[%clk 00:10:36]} {[%emt 00:00:20]} 33. Bxf6 {[%clk 00:36:17]} {[%emt
00:00:06]} gxf6 {[%clk 00:10:54]} {[%emt 00:00:12]} 34. cxd5 {[%clk 00:36:32]}
{[%emt 00:00:16]} Bb7 {[%clk 00:09:42]} {[%emt 00:01:41]} 35. Qd2 {[%clk
00:35:39]} {[%emt 00:01:23]} Kf8 {[%clk 00:07:31]} {[%emt 00:02:41]} 36. Qh6+
{[%clk 00:33:56]} {[%emt 00:02:13]} Ke8 {[%clk 00:07:15]} {[%emt 00:00:46]} 37.
Qh8+ {[%clk 00:33:30]} {[%emt 00:00:56]} Ke7 {[%clk 00:07:41]} {[%emt
00:00:04]} 38. Qxh5 {[%clk 00:33:54]} {[%emt 00:00:06]} Qc7 {[%clk 00:07:14]}
{[%emt 00:00:55]} 39. Qe2+ {[%clk 00:33:51]} {[%emt 00:00:34]} Kd7 {[%clk
00:06:48]} {[%emt 00:00:57]} 40. Qd2 {[%clk 00:33:48]} {[%emt 00:00:33]} Qc4
{[%clk 00:07:00]} {[%emt 00:00:18]} 41. h4 {[%clk 00:33:13]} {[%emt 00:01:05]}
Qb3 {[%clk 00:05:54]} {[%emt 00:01:36]} 42. Kf2 {[%clk 00:32:40]} {[%emt
00:01:03]} Kd6 {[%clk 00:06:02]} {[%emt 00:00:22]} 43. Qf4+ {[%clk 00:32:34]}
{[%emt 00:00:36]} 1-0

[Event "Masterklassen-Elit 2025"]
[Site "Uppsala, Sweden"]
[Date "2025.06.29"]
[Round "2.5"]
[White "Lindberg, Bengt"]
[Black "Wiedenkeller, Michael"]
[Result "1/2-1/2"]
[TimeControl "90 min for 40 move + 30 min with an increment of 30 sec starting move 1"]
[WhiteTitle "IM"]
[BlackTitle "IM"]
[WhiteFideId "1700359"]
[BlackFideId "1700146"]
[WhiteElo "2334"]
[BlackElo "2384"]

1. e4 {[%clk 01:30:57]} {[%emt 00:00:02]} e5 {[%clk 01:26:07]} {[%emt
00:04:54]} 2. Nf3 {[%clk 01:31:11]} {[%emt 00:00:16]} Nc6 {[%clk 01:26:20]}
{[%emt 00:00:17]} 3. Bb5 {[%clk 01:31:11]} {[%emt 00:00:29]} Nf6 {[%clk
01:26:21]} {[%emt 00:00:29]} 4. Nc3 {[%clk 01:31:31]} {[%emt 00:00:11]} Nd4
{[%clk 01:25:57]} {[%emt 00:00:54]} 5. O-O {[%clk 01:30:57]} {[%emt 00:01:03]}
Nxb5 {[%clk 01:08:36]} {[%emt 00:17:51]} 6. Nxb5 {[%clk 01:30:52]} {[%emt
00:00:35]} c6 {[%clk 01:06:12]} {[%emt 00:02:55]} 7. Nc3 {[%clk 01:31:03]}
{[%emt 00:00:18]} d6 {[%clk 01:05:50]} {[%emt 00:00:53]} 8. d4 {[%clk
01:30:46]} {[%emt 00:00:47]} Qc7 {[%clk 01:05:20]} {[%emt 00:01:00]} 9. h3
{[%emt 00:04:43]} Be7 {[%clk 01:04:04]} {[%emt 00:01:29]} 10. a4 {[%clk
01:25:22]} {[%emt 00:01:58]} O-O {[%clk 01:02:36]} {[%emt 00:01:57]} 11. Re1
{[%clk 01:24:56]} {[%emt 00:00:55]} Re8 {[%clk 01:01:56]} {[%emt 00:01:10]} 12.
Be3 {[%clk 01:06:06]} {[%emt 00:19:20]} h6 {[%clk 00:58:24]} {[%emt 00:04:02]}
13. Re2 {[%clk 01:00:26]} {[%emt 00:06:10]} Bf8 {[%clk 00:54:49]} {[%emt
00:04:06]} 14. d5 {[%clk 00:53:42]} {[%emt 00:07:14]} Bd7 {[%clk 00:49:24]}
{[%emt 00:05:56]} 15. Rd2 {[%emt 00:08:04]} g6 {[%clk 00:43:28]} {[%emt
00:03:23]} 16. Nh2 {[%clk 00:48:38]} {[%emt 00:01:01]} cxd5 {[%emt 00:09:01]}
1/2-1/2

[Event "Masterklassen-Elit 2025"]
[Site "Uppsala, Sweden"]
[Date "2025.06.30"]
[Round "3.1"]
[White "Andersson, Tommy"]
[Black "Carlsson, Ludvig"]
[Result "1-0"]
[TimeControl "90 min for 40 move + 30 min with an increment of 30 sec starting move 1"]
[WhiteTitle "IM"]
[BlackTitle "IM"]
[WhiteFideId "1703803"]
[BlackFideId "1727010"]
[WhiteElo "2348"]
[BlackElo "2379"]

1. d4 {[%clk 01:30:56]} {[%emt 00:00:03]} Nf6 {[%clk 01:30:47]} {[%emt
00:00:13]} 2. c4 {[%clk 01:31:18]} {[%emt 00:00:09]} e6 {[%clk 01:31:08]}
{[%emt 00:00:08]} 3. Nf3 {[%clk 01:31:41]} {[%emt 00:00:07]} c5 {[%clk
01:31:30]} {[%emt 00:00:08]} 4. e3 {[%clk 01:31:43]} {[%emt 00:00:29]} cxd4
{[%clk 01:31:52]} {[%emt 00:00:09]} 5. exd4 {[%clk 01:31:58]} {[%emt 00:00:14]}
d5 {[%clk 01:32:13]} {[%emt 00:00:08]} 6. Nc3 {[%clk 01:31:35]} {[%emt
00:00:54]} Be7 {[%clk 01:32:34]} {[%emt 00:00:09]} 7. Bd3 {[%clk 01:31:33]}
{[%emt 00:00:31]} dxc4 {[%clk 01:31:55]} {[%emt 00:01:09]} 8. Bxc4 {[%clk
01:32:01]} {[%emt 00:00:03]} a6 {[%clk 01:32:07]} {[%emt 00:00:18]} 9. a4
{[%clk 01:27:32]} {[%emt 00:04:59]} O-O {[%clk 01:32:16]} {[%emt 00:00:21]} 10.
O-O {[%clk 01:26:45]} {[%emt 00:01:17]} Nc6 {[%clk 01:32:37]} {[%emt 00:00:08]}
11. Bg5 {[%clk 01:25:02]} {[%emt 00:02:13]} h6 {[%clk 01:29:48]} {[%emt
00:03:19]} 12. Bh4 {[%clk 01:22:11]} {[%emt 00:03:21]} b6 {[%clk 01:26:22]}
{[%emt 00:03:57]} 13. Qd3 {[%clk 01:16:54]} {[%emt 00:05:47]} Bb7 {[%clk
01:23:21]} {[%emt 00:03:31]} 14. Rfd1 {[%clk 01:15:45]} {[%emt 00:01:38]} Nh5
{[%clk 01:07:10]} {[%emt 00:16:40]} 15. Bg3 {[%clk 01:12:11]} {[%emt 00:04:05]}
Nb4 {[%clk 00:53:43]} {[%emt 00:13:57]} 16. Qe2 {[%clk 01:11:11]} {[%emt
00:01:29]} Nxg3 {[%clk 00:51:41]} {[%emt 00:02:32]} 17. hxg3 {[%clk 01:11:28]}
{[%emt 00:00:13]} Rc8 {[%clk 00:49:24]} {[%emt 00:02:46]} 18. Ne5 {[%clk
01:04:31]} {[%emt 00:07:29]} Rc7 {[%clk 00:43:32]} {[%emt 00:06:21]} 19. Bb3
{[%clk 00:50:23]} {[%emt 00:14:38]} Qa8 {[%clk 00:37:21]} {[%emt 00:06:41]} 20.
f3 {[%clk 00:43:01]} {[%emt 00:07:52]} Qd8 {[%clk 00:30:06]} {[%emt 00:07:45]}
21. Kh2 {[%emt 00:15:58]} Kh8 22. Rd2 {[%clk 00:36:20]} {[%emt 00:00:19]} a5
{[%clk 00:16:19]} {[%emt 00:06:12]} 23. Re1 {[%clk 00:29:45]} {[%emt 00:07:04]}
Nd5 {[%clk 00:15:20]} {[%emt 00:01:29]} 24. Rc2 {[%clk 00:23:41]} {[%emt
00:06:34]} Nxc3 {[%clk 00:13:18]} {[%emt 00:02:33]} 25. bxc3 {[%clk 00:22:17]}
{[%emt 00:01:54]} Kg8 {[%clk 00:11:09]} {[%emt 00:02:38]} 26. Rb1 {[%clk
00:20:29]} {[%emt 00:02:18]} Qc8 {[%clk 00:06:28]} {[%emt 00:05:12]} 27. Ba2
{[%clk 00:15:59]} {[%emt 00:05:00]} Bb4 {[%clk 00:04:39]} {[%emt 00:02:18]} 28.
Nc4 {[%clk 00:14:55]} {[%emt 00:01:34]} Be7 {[%clk 00:04:51]} {[%emt 00:00:18]}
29. Nxb6 {[%clk 00:12:10]} {[%emt 00:03:16]} Qd8 {[%clk 00:05:05]} {[%emt
00:00:15]} 30. Qe3 {[%clk 00:11:02]} {[%emt 00:01:39]} Bc6 {[%clk 00:00:37]}
{[%emt 00:04:58]} 31. c4 {[%clk 00:08:59]} {[%emt 00:02:33]} Bd6 {[%clk
00:00:35]} {[%emt 00:00:32]} 32. f4 {[%clk 00:08:49]} {[%emt 00:00:40]} Rb7
{[%clk 00:01:00]} {[%emt 00:00:06]} 33. c5 {[%clk 00:03:22]} {[%emt 00:05:57]}
Bc7 {[%clk 00:01:17]} {[%emt 00:00:13]} 34. Rcb2 {[%clk 00:03:42]} {[%emt
00:00:10]} Qe8 {[%clk 00:00:50]} {[%emt 00:00:57]} 35. d5 {[%clk 00:02:48]}
{[%emt 00:01:24]} exd5 {[%clk 00:00:40]} {[%emt 00:00:40]} 36. Qxe8 {[%clk
00:03:11]} {[%emt 00:00:07]} Rxe8 {[%clk 00:01:06]} {[%emt 00:00:03]} 37. Bxd5
{[%clk 00:02:58]} {[%emt 00:00:44]} Bxd5 {[%clk 00:00:40]} {[%emt 00:00:56]} 38.
Nxd5 {[%clk 00:03:20]} {[%emt 00:00:07]} Rxb2 {[%clk 00:00:32]} {[%emt
00:00:40]} 39. Rxb2 {[%clk 00:03:41]} {[%emt 00:00:08]} Bb8 {[%clk 00:00:31]}
{[%emt 00:00:32]} 40. c6 {[%clk 00:03:00]} {[%emt 00:01:10]} Bd6 {[%clk
00:00:43]} {[%emt 00:00:18]} 41. c7 {[%clk 00:02:07]} {[%emt 00:01:23]} Rc8
{[%clk 00:30:15]} {[%emt 00:00:58]} 42. Rb6 {[%clk 00:31:48]} {[%emt 00:00:49]}
1-0

[Event "Masterklassen-Elit 2025"]
[Site "Uppsala, Sweden"]
[Date "2025.06.30"]
[Round "3.2"]
[White "Thorn, Eric"]
[Black "Landgren, Andreas"]
[Result "0-1"]
[TimeControl "90 min for 40 move + 30 min with an increment of 30 sec starting move 1"]
[WhiteTitle "FM"]
[BlackTitle "FM"]
[WhiteFideId "1710729"]
[BlackFideId "1704311"]
[WhiteElo "2357"]
[BlackElo "2261"]

1. Nf3 {[%clk 01:30:57]} {[%emt 00:00:02]} Nf6 {[%clk 01:30:47]} {[%emt
00:00:14]} 2. g3 {[%clk 01:30:53]} {[%emt 00:00:34]} c5 {[%clk 01:30:49]}
{[%emt 00:00:28]} 3. Bg2 {[%clk 01:27:57]} {[%emt 00:03:26]} Nc6 {[%clk
01:31:05]} {[%emt 00:00:14]} 4. O-O {[%clk 01:19:27]} {[%emt 00:09:00]} e5
{[%clk 01:31:17]} {[%emt 00:00:18]} 5. e4 {[%clk 01:16:52]} {[%emt 00:03:05]}
d6 {[%clk 01:31:27]} {[%emt 00:00:19]} 6. d3 {[%clk 01:14:28]} {[%emt
00:02:55]} g6 {[%clk 01:30:31]} {[%emt 00:01:27]} 7. c3 {[%clk 01:09:07]}
{[%emt 00:05:50]} Bg7 {[%clk 01:30:07]} {[%emt 00:00:54]} 8. a3 {[%clk
01:09:16]} {[%emt 00:00:22]} O-O {[%clk 01:27:18]} {[%emt 00:03:18]} 9. b4
{[%clk 01:02:28]} {[%emt 00:07:18]} a6 {[%clk 01:26:06]} {[%emt 00:01:42]} 10.
Nbd2 {[%clk 00:54:13]} {[%emt 00:08:45]} Re8 {[%clk 01:13:58]} {[%emt
00:12:37]} 11. Rb1 {[%clk 00:51:15]} {[%emt 00:03:29]} cxb4 {[%clk 00:45:17]}
{[%emt 00:29:11]} 12. axb4 {[%clk 00:50:54]} {[%emt 00:00:50]} d5 {[%clk
00:43:37]} {[%emt 00:02:10]} 13. Qc2 {[%clk 00:47:24]} {[%emt 00:04:00]} Qc7
{[%clk 00:32:07]} {[%emt 00:12:00]} 14. c4 {[%clk 00:38:42]} {[%emt 00:09:12]}
dxe4 {[%clk 00:25:36]} {[%emt 00:07:01]} 15. dxe4 {[%clk 00:38:55]} {[%emt
00:00:18]} a5 {[%clk 00:25:33]} {[%emt 00:00:32]} 16. b5 {[%clk 00:37:04]}
{[%emt 00:02:20]} Nb4 {[%clk 00:25:04]} {[%emt 00:01:00]} 17. Qa4 {[%clk
00:33:13]} {[%emt 00:04:21]} Bf8 {[%clk 00:24:49]} {[%emt 00:00:44]} 18. Bb2
{[%clk 00:28:16]} {[%emt 00:05:27]} Nd7 {[%clk 00:22:08]} {[%emt 00:03:11]} 19.
Qa1 {[%clk 00:23:08]} {[%emt 00:05:39]} b6 {[%clk 00:20:12]} {[%emt 00:02:26]}
20. Rbd1 {[%clk 00:18:20]} {[%emt 00:05:18]} f6 {[%clk 00:17:46]} {[%emt
00:02:56]} 21. Ne1 {[%clk 00:17:58]} {[%emt 00:00:53]} Bb7 {[%clk 00:14:30]}
{[%emt 00:03:45]} 22. f4 {[%clk 00:18:19]} {[%emt 00:00:09]} Bg7 {[%clk
00:13:23]} {[%emt 00:01:37]} 23. Nb1 {[%clk 00:13:54]} {[%emt 00:04:56]} Rad8
{[%clk 00:09:16]} {[%emt 00:04:36]} 24. Nc3 {[%clk 00:08:33]} {[%emt 00:05:51]}
Qxc4 {[%clk 00:09:07]} {[%emt 00:00:39]} 25. Rf2 {[%clk 00:05:58]} {[%emt
00:03:05]} Nc5 {[%emt 00:02:27]} 26. Bf1 {[%clk 00:04:58]} {[%emt 00:01:10]}
Qe6 {[%clk 00:04:54]} {[%emt 00:03:06]} 27. Nd5 {[%emt 00:03:56]} Nxe4 {[%clk
00:02:56]} {[%emt 00:01:01]} 28. Nc7 {[%clk 00:01:21]} {[%emt 00:02:09]} Qe7
{[%clk 00:03:15]} {[%emt 00:00:11]} 29. Nxe8 {[%clk 00:00:57]} {[%emt
00:00:54]} Rxe8 {[%clk 00:03:19]} {[%emt 00:00:25]} 30. fxe5 {[%clk 00:00:36]}
{[%emt 00:00:51]} fxe5 {[%clk 00:03:32]} {[%emt 00:00:19]} 31. Qc1 {[%clk
00:00:35]} {[%emt 00:00:30]} Nxf2 {[%clk 00:02:37]} {[%emt 00:01:25]} 32. Kxf2
{[%clk 00:00:42]} {[%emt 00:00:23]} Qf6+ {[%clk 00:01:40]} {[%emt 00:01:28]} 33.
Kg1 {[%clk 00:00:46]} {[%emt 00:00:25]} Bf8 {[%clk 00:01:52]} {[%emt 00:00:18]}
34. Bg2 {[%clk 00:00:42]} {[%emt 00:00:33]} Bc5+ {[%clk 00:02:06]} {[%emt
00:00:16]} 35. Kh1 {[%clk 00:01:07]} {[%emt 00:00:05]} Qf1# {[%emt 00:00:07]}
0-1

[Event "Masterklassen-Elit 2025"]
[Site "Uppsala, Sweden"]
[Date "2025.06.30"]
[Round "3.3"]
[White "Strom-Engdahl, Alexander"]
[Black "Olsson, William"]
[Result "1/2-1/2"]
[TimeControl "90 min for 40 move + 30 min with an increment of 30 sec starting move 1"]
[WhiteTitle "FM"]
[BlackTitle "IM"]
[WhiteFideId "1741586"]
[BlackFideId "1741721"]
[WhiteElo "2320"]
[BlackElo "2365"]

1. e4 {[%clk 01:30:25]} {[%emt 00:00:33]} e5 {[%clk 01:30:48]} {[%emt
00:00:13]} 2. Nf3 {[%clk 01:30:49]} {[%emt 00:00:06]} Nc6 {[%clk 01:31:14]}
{[%emt 00:00:04]} 3. Bc4 {[%clk 01:31:14]} {[%emt 00:00:05]} Bc5 {[%clk
01:31:39]} {[%emt 00:00:05]} 4. O-O {[%clk 01:31:27]} {[%emt 00:00:17]} Nf6
{[%clk 01:25:10]} {[%emt 00:06:58]} 5. d3 {[%clk 01:31:46]} {[%emt 00:00:12]}
d6 {[%clk 01:25:25]} {[%emt 00:00:15]} 6. c3 {[%clk 01:32:10]} {[%emt
00:00:06]} O-O {[%clk 01:24:47]} {[%emt 00:01:07]} 7. Re1 {[%clk 01:32:33]}
{[%emt 00:00:07]} a5 {[%clk 01:24:44]} {[%emt 00:00:34]} 8. Nbd2 {[%clk
01:28:10]} {[%emt 00:04:53]} Ba7 {[%clk 01:24:36]} {[%emt 00:00:38]} 9. Nf1
{[%clk 01:25:35]} {[%emt 00:03:05]} Be6 {[%clk 01:24:39]} {[%emt 00:00:27]} 10.
Bb5 {[%clk 01:20:33]} {[%emt 00:05:32]} Ne7 {[%clk 01:24:56]} {[%emt 00:00:13]}
11. Ng3 {[%clk 01:19:40]} {[%emt 00:01:22]} c6 {[%clk 01:20:28]} {[%emt
00:04:58]} 12. Ba4 {[%clk 01:19:54]} {[%emt 00:00:15]} b5 {[%clk 01:19:08]}
{[%emt 00:01:51]} 13. Bc2 {[%clk 01:19:52]} {[%emt 00:00:32]} a4 {[%clk
01:17:19]} {[%emt 00:02:19]} 14. d4 {[%clk 01:15:07]} {[%emt 00:05:14]} Ng6
{[%clk 01:16:23]} {[%emt 00:01:26]} 15. h3 {[%clk 01:13:04]} {[%emt 00:02:33]}
h6 {[%clk 01:11:52]} {[%emt 00:05:02]} 16. Be3 {[%clk 01:10:18]} {[%emt
00:03:16]} Qc7 {[%clk 01:06:53]} {[%emt 00:05:28]} 17. Qc1 {[%clk 01:02:48]}
{[%emt 00:08:00]} Rfe8 {[%clk 01:00:56]} {[%emt 00:06:28]} 18. Bd3 {[%clk
00:54:23]} {[%emt 00:08:54]} Bb6 {[%clk 00:57:52]} {[%emt 00:03:34]} 19. Qc2
{[%clk 00:51:21]} {[%emt 00:03:31]} Ra5 {[%clk 00:50:32]} {[%emt 00:07:51]} 20.
a3 {[%clk 00:35:01]} {[%emt 00:16:51]} Raa8 {[%clk 00:48:35]} {[%emt 00:02:26]}
21. Rac1 {[%clk 00:33:41]} {[%emt 00:01:50]} Bd7 {[%clk 00:35:56]} {[%emt
00:13:09]} 22. c4 {[%clk 00:30:00]} {[%emt 00:04:11]} exd4 {[%clk 00:32:29]}
{[%emt 00:03:57]} 23. Nxd4 {[%clk 00:28:49]} {[%emt 00:01:41]} Ba5 {[%clk
00:32:37]} {[%emt 00:00:23]} 24. Red1 {[%clk 00:27:48]} {[%emt 00:01:31]} b4
{[%clk 00:32:17]} {[%emt 00:00:50]} 25. Ndf5 {[%clk 00:24:37]} {[%emt
00:03:40]} b3 {[%clk 00:30:55]} {[%emt 00:01:52]} 26. Qe2 {[%clk 00:24:35]}
{[%emt 00:00:32]} Bxf5 {[%clk 00:27:23]} {[%emt 00:04:01]} 27. exf5 {[%clk
00:22:15]} {[%emt 00:02:51]} Ne5 {[%clk 00:27:21]} {[%emt 00:00:32]} 28. Bb1
{[%clk 00:20:50]} {[%emt 00:01:56]} Rad8 {[%clk 00:27:14]} {[%emt 00:00:36]} 29.
Nh5 {[%clk 00:18:47]} {[%emt 00:02:33]} Ned7 {[%clk 00:26:51]} {[%emt
00:00:53]} 30. Nxf6+ {[%clk 00:18:28]} {[%emt 00:00:49]} Nxf6 {[%clk 00:27:20]}
{[%emt 00:00:02]} 31. Qf3 {[%clk 00:18:32]} {[%emt 00:00:26]} Bb6 {[%clk
00:24:13]} {[%emt 00:03:37]} 32. Bf4 {[%clk 00:18:38]} {[%emt 00:00:23]} Bc5
{[%clk 00:24:02]} {[%emt 00:00:42]} 33. g4 {[%clk 00:13:05]} {[%emt 00:06:02]}
Rd7 {[%clk 00:23:24]} {[%emt 00:01:08]} 34. Kg2 {[%clk 00:12:04]} {[%emt
00:01:31]} Rde7 {[%clk 00:22:22]} {[%emt 00:01:33]} 35. Rd2 {[%clk 00:08:23]}
{[%emt 00:04:11]} Ne4 {[%clk 00:21:50]} {[%emt 00:01:02]} 36. Bxe4 {[%clk
00:06:20]} {[%emt 00:02:32]} Rxe4 {[%clk 00:22:18]} {[%emt 00:00:02]} 37. Rcd1
{[%clk 00:06:22]} {[%emt 00:00:28]} Rxc4 {[%clk 00:21:00]} {[%emt 00:01:49]} 38.
Bxd6 {[%clk 00:05:54]} {[%emt 00:00:57]} Bxd6 {[%clk 00:20:22]} {[%emt
00:01:09]} 39. Rxd6 {[%clk 00:06:17]} {[%emt 00:00:07]} Rc2 {[%clk 00:20:41]}
{[%emt 00:00:11]} 40. f6 {[%clk 00:02:45]} {[%emt 00:04:02]} Ree2 {[%clk
00:12:12]} {[%emt 00:08:58]} 41. fxg7 {[%clk 00:25:53]} {[%emt 00:07:21]} Rxf2+
{[%clk 00:41:24]} {[%emt 00:01:19]} 42. Qxf2 {[%clk 00:25:13]} {[%emt
00:01:10]} Rxf2+ {[%clk 00:41:50]} {[%emt 00:00:04]} 43. Kxf2 {[%clk 00:25:36]}
{[%emt 00:00:07]} Kxg7 {[%clk 00:42:02]} {[%emt 00:00:19]} 44. Kg2 {[%clk
00:15:47]} {[%emt 00:10:18]} c5 {[%clk 00:39:46]} {[%emt 00:02:46]} 45. R6d3
{[%clk 00:14:30]} {[%emt 00:01:44]} Qc6+ {[%clk 00:30:35]} {[%emt 00:09:44]} 46.
Rf3 {[%clk 00:14:13]} {[%emt 00:00:47]} c4 {[%clk 00:30:29]} {[%emt 00:00:36]}
47. Rc1 {[%clk 00:13:30]} {[%emt 00:01:08]} f6 {[%clk 00:27:22]} {[%emt
00:03:43]} 48. Rcc3 {[%clk 00:12:35]} {[%emt 00:01:24]} Kg6 {[%clk 00:26:47]}
{[%emt 00:01:04]} 49. Kg3 {[%clk 00:12:31]} {[%emt 00:00:34]} Qe4 {[%clk
00:25:31]} {[%emt 00:01:39]} 50. Rf2 {[%clk 00:12:23]} {[%emt 00:00:45]} Qe5+
{[%clk 00:23:59]} {[%emt 00:02:03]} 51. Kg2 {[%clk 00:12:33]} {[%emt 00:00:14]}
Qe4+ {[%clk 00:22:54]} {[%emt 00:01:41]} 52. Kg3 {[%clk 00:11:19]} {[%emt
00:01:42]} Kf7 {[%clk 00:22:46]} {[%emt 00:00:40]} 53. Rcf3 {[%clk 00:11:31]}
{[%emt 00:00:18]} Qe5+ {[%clk 00:22:11]} {[%emt 00:01:05]} 54. Kg2 {[%clk
00:11:45]} {[%emt 00:00:12]} Qe4 {[%clk 00:21:34]} {[%emt 00:01:12]} 55. Kg3
{[%clk 00:11:58]} {[%emt 00:00:13]} Qd4 {[%clk 00:19:48]} {[%emt 00:02:21]} 56.
Kg2 {[%clk 00:12:01]} {[%emt 00:00:23]} Qd6 {[%clk 00:19:08]} {[%emt 00:01:11]}
57. Kg1 {[%clk 00:12:03]} {[%emt 00:00:28]} Kg6 {[%clk 00:18:41]} {[%emt
00:01:00]} 58. Kg2 {[%clk 00:12:20]} {[%emt 00:00:13]} Qe5 {[%clk 00:16:11]}
{[%emt 00:03:00]} 59. Kg1 {[%clk 00:12:20]} {[%emt 00:00:23]} Kg7 {[%clk
00:16:14]} {[%emt 00:00:30]} 60. Kg2 {[%clk 00:11:14]} {[%emt 00:01:39]} Kg6
{[%clk 00:13:05]} {[%emt 00:03:39]} 1/2-1/2